bitfinex/quotes_BTCUSD_20230405
["timestamp","ask_amount","ask_price","bid_price","bid_amount"]
[1680699437011,0.026456,28537.0,28536.0,0.01948]
[1680699437232,0.01121,28537.0,28536.0,0.01948]
[1680699437458,0.051967,28537.0,28536.0,0.01948]
[1680699437703,0.085112,28537.0,28536.0,0.01948]
[1680699437923,0.042115,28537.0,28535.0,0.0218]
[1680699438150,0.015832,28536.0,28535.0,0.0218]
[1680699438367,0.024592,28536.0,28535.0,0.0218]
[1680699438790,0.024592,28536.0,28535.0,0.02958132]
[1680699439040,0.042592,28536.0,28535.0,0.02958132]
[1680699440388,0.04084,28536.0,28535.0,0.02958132]
[1680699440594,0.02284,28536.0,28535.0,0.02958132]
[1680699440810,0.04084,28536.0,28535.0,0.02958132]
[1680699442668,0.033832,28536.0,28535.0,0.02958132]
[1680699442881,0.018,28536.0,28535.0,0.02958132]
[1680699443096,0.018,28536.0,28535.0,0.07418532]
[1680699443323,0.018,28536.0,28535.0,0.03699985]
[1680699443526,0.018,28536.0,28535.0,0.02958132]
[1680699443743,0.01666187,28536.0,28535.0,0.07331032]
[1680699443958,0.02366987,28536.0,28535.0,0.02958132]
[1680699444199,0.021831,28536.0,28535.0,0.02958132]
[1680699444419,0.039831,28536.0,28535.0,0.02958132]
[1680699446072,0.032823,28536.0,28535.0,0.02958132]
[1680699446280,0.018,28536.0,28535.0,0.02958132]
[1680699446495,0.018,28536.0,28535.0,0.07313732]
[1680699446980,0.01677134,28536.0,28535.0,0.09515105]
[1680699447418,0.01677134,28536.0,28535.0,0.44986161]
[1680699447634,0.007007,28541.0,28535.0,0.44986161]
[1680699447852,0.00077646,28536.0,28535.0,0.05759505]
[1680699448105,0.00077646,28536.0,28535.0,0.25011605]
[1680699448315,0.007007,28543.0,28535.0,0.24236405]
[1680699448523,0.007007,28543.0,28536.0,0.16613322]
[1680699448938,0.00713947,28543.0,28536.0,0.16613322]
[1680699449151,0.00713947,28543.0,28537.0,0.35471056]
[1680699449152,0.12983842,28543.0,28537.0,0.35471056]
[1680699449360,0.00713947,28543.0,28538.0,0.05208438]
[1680699449565,0.015392,28542.0,28538.0,0.19398119]
[1680699449772,0.02101153,28542.0,28538.0,0.06630154]
[1680699449980,0.009007,28543.0,28538.0,0.05208438]
[1680699450188,0.078899,28544.0,28539.0,0.04210721]
[1680699450399,0.017842,28543.0,28539.0,0.18400402]
[1680699450597,0.0091,28542.0,28539.0,0.04228721]
[1680699450832,0.017309,28543.0,28539.0,0.04210721]
[1680699451042,0.013633,28542.0,28540.0,0.35893928]
[1680699451283,0.007006,28546.0,28541.0,0.1473]
[1680699451472,0.011,28543.0,28542.0,0.19253874]
[1680699451709,0.00883106,28547.0,28541.0,0.50213056]
[1680699451925,0.035032,28545.0,28541.0,0.35471056]
[1680699452143,0.009398,28544.0,28541.0,0.44212249]
[1680699452366,0.007006,28544.0,28541.0,0.44212249]
[1680699452798,0.007006,28544.0,28542.0,0.01461337]
[1680699453009,0.007006,28544.0,28543.0,0.04567359]
[1680699453260,0.008006,28544.0,28543.0,0.04567359]
[1680699453466,0.008006,28544.0,28540.0,0.00422872]
[1680699453467,0.007006,28544.0,28540.0,0.00422872]
[1680699453675,0.010006,28544.0,28540.0,0.35893928]
[1680699453881,0.12970495,28544.0,28543.0,0.01393256]
[1680699454046,0.021014,28544.0,28543.0,0.01393256]
[1680699454304,0.003,28544.0,28543.0,0.01393256]
[1680699454492,0.00713847,28546.0,28543.0,0.01393256]
[1680699454493,0.00013247,28546.0,28543.0,0.01393256]
[1680699454667,0.002,28544.0,28543.0,0.01393256]
[1680699454851,0.002,28544.0,28543.0,0.35471056]
[1680699455050,0.002,28544.0,28543.0,0.40491162]
[1680699455519,0.00013247,28549.0,28543.0,0.40491162]
[1680699455727,0.007005,28550.0,28544.0,0.14189681]
[1680699455728,0.00013247,28550.0,28544.0,0.14189681]
[1680699455934,0.00013247,28550.0,28545.0,0.05468084]
[1680699456140,0.00013247,28550.0,28546.0,0.14189681]
[1680699456345,1.97221206,28552.0,28550.0,0.00013247]
[1680699456546,0.010071,28551.0,28550.0,0.14202928]
[1680699456749,0.009864,28552.0,28550.0,0.00013247]
[1680699456952,0.010071,28553.0,28550.0,0.00013247]
[1680699457158,0.007004,28552.0,28550.0,0.00013247]
[1680699457304,0.009864,28551.0,28550.0,0.00013247]
[1680699457880,0.010071,28552.0,28551.0,0.01252194]
[1680699458541,0.009864,28553.0,28551.0,0.01252194]
[1680699458786,0.01,28552.0,28551.0,0.01352194]
[1680699459190,0.007004,28555.0,28551.0,0.01252194]
[1680699459399,0.023,28552.0,28551.0,0.01352194]
[1680699459807,0.007004,28554.0,28551.0,0.01252194]
[1680699460011,0.01,28552.0,28551.0,0.01352194]
[1680699460383,0.00989096,28552.0,28551.0,0.01352194]
[1680699462185,0.00989096,28552.0,28551.0,0.06230494]
[1680699462396,0.00989096,28552.0,28551.0,0.43518534]
[1680699462605,0.00989096,28552.0,28551.0,0.43361434]
[1680699463656,0.00989096,28552.0,28551.0,0.43536534]
[1680699464071,0.00989096,28552.0,28551.0,0.43361434]
[1680699464500,0.3,28556.0,28552.0,0.1]
[1680699464709,0.3,28556.0,28553.0,0.40282456]
[1680699464913,0.02419,28557.0,28553.0,0.35489056]
[1680699465131,0.02398,28557.0,28553.0,0.49678737]
[1680699465337,0.02398,28557.0,28554.0,0.08436589]
[1680699465949,0.02598,28557.0,28554.0,0.08436589]
[1680699466153,0.030983,28557.0,28554.0,0.08436589]
[1680699466360,0.02398,28557.0,28553.0,0.35489056]
[1680699466561,0.02598,28557.0,28554.0,0.014]
[1680699466763,0.032983,28557.0,28554.0,0.014]
[1680699467130,0.02598,28557.0,28554.0,0.014]
[1680699467691,0.02598,28557.0,28551.0,0.01659884]
[1680699467692,0.02398,28557.0,28551.0,0.11659884]
[1680699467994,0.14667895,28557.0,28552.0,0.55545879]
[1680699468198,0.02598,28557.0,28554.0,0.014]
[1680699468412,0.02598,28557.0,28554.0,0.07096388]
[1680699469046,0.02598,28557.0,28554.0,0.05696388]
[1680699469047,0.02398,28557.0,28554.0,0.05696388]
[1680699469252,0.02598,28557.0,28554.0,0.05696388]
[1680699469910,0.02598,28557.0,28555.0,0.01157751]
[1680699470311,0.02398,28557.0,28555.0,0.01157751]
[1680699470568,0.02598,28557.0,28555.0,0.01157751]
[1680699470815,0.02398,28557.0,28555.0,0.01157751]
[1680699470994,0.02398,28557.0,28555.0,0.02157751]
[1680699470995,0.02498,28557.0,28555.0,0.02157751]
[1680699473231,0.15468195,28557.0,28555.0,0.02157751]
[1680699473469,0.010958,28556.0,28555.0,0.02157751]
[1680699473715,0.017961,28556.0,28555.0,0.01]
[1680699474135,0.017961,28556.0,28550.0,0.00013247]
[1680699474342,0.12269895,28555.0,28550.0,0.05401972]
[1680699474568,0.12970295,28555.0,28550.0,0.05419972]
[1680699474778,0.001,28556.0,28551.0,0.01154996]
[1680699474988,0.001,28556.0,28551.0,0.15886674]
[1680699475188,0.001,28556.0,28551.0,0.15898674]
[1680699475393,0.001,28556.0,28551.0,0.01696993]
[1680699475795,0.001,28556.0,28551.0,0.5135773]
[1680699476000,0.02398,28557.0,28552.0,0.55338507]
[1680699476198,0.02398,28557.0,28553.0,0.049501]
[1680699476199,0.002,28555.0,28553.0,0.049501]
[1680699476408,0.02398,28557.0,28553.0,0.40421156]
[1680699476652,0.002,28556.0,28553.0,0.08468392]
[1680699476808,0.002,28556.0,28551.0,0.01959997]
[1680699477004,0.002,28556.0,28552.0,0.35471056]
[1680699477005,0.12469895,28556.0,28552.0,0.35471056]
[1680699477212,0.02398,28557.0,28552.0,0.42920486]
[1680699477426,0.002,28555.0,28553.0,0.014]
[1680699477620,0.02398,28557.0,28552.0,0.42920486]
[1680699478011,0.02398,28557.0,28553.0,0.05346248]
[1680699478012,0.002,28556.0,28553.0,0.05346248]
[1680699478843,0.02398,28557.0,28553.0,0.05346248]
[1680699478994,0.002,28555.0,28553.0,0.06746248]
[1680699479200,0.02398,28557.0,28554.0,0.09675373]
[1680699479388,0.002,28556.0,28553.0,0.01412]
[1680699479584,0.002,28556.0,28552.0,0.0744943]
[1680699479877,0.02398,28557.0,28552.0,0.0743143]
[1680699480078,0.002,28555.0,28553.0,0.014]
[1680699480283,0.02398,28557.0,28552.0,0.0743143]
[1680699480466,0.002,28556.0,28552.0,0.0883143]
[1680699480671,0.002,28556.0,28553.0,0.048729]
[1680699480881,0.02398,28557.0,28553.0,0.07159333]
[1680699481076,0.02398,28557.0,28553.0,0.02286433]
[1680699481340,0.02398,28557.0,28554.0,0.048118]
[1680699481548,0.02398,28557.0,28553.0,0.02286433]
[1680699481759,0.02398,28557.0,28555.0,0.0077]
[1680699482192,0.02598,28557.0,28555.0,0.0077]
[1680699482805,0.02398,28557.0,28555.0,0.0077]
[1680699483020,0.02398,28557.0,28555.0,0.0177]
[1680699483224,0.02498,28557.0,28556.0,0.049245]
[1680699484106,0.02498,28557.0,28556.0,0.0559395]
[1680699484543,0.02398,28557.0,28556.0,0.05583557]
[1680699484821,0.02267679,28557.0,28556.0,0.0718677]
[1680699485869,0.02267679,28557.0,28556.0,0.02272663]
[1680699486084,0.02267679,28557.0,28556.0,0.01603213]
[1680699486319,0.02267679,28557.0,28556.0,0.06248113]
[1680699486502,0.02267679,28557.0,28556.0,0.01603213]
[1680699487182,0.02267679,28557.0,28556.0,0.02393213]
[1680699488551,0.5070893,28557.0,28556.0,0.02393213]
[1680699488768,0.9436865,28557.0,28556.0,0.01603213]
[1680699488986,0.77677135,28557.0,28556.0,0.01603213]
[1680699489424,0.77577135,28557.0,28556.0,0.01603213]
[1680699489643,0.87577135,28557.0,28556.0,0.01603213]
[1680699489869,0.87577135,28557.0,28556.0,0.003]
[1680699490298,0.87577135,28557.0,28550.0,0.00013247]
[1680699490512,0.0817,28554.0,28550.0,0.14378028]
[1680699490726,0.12269895,28554.0,28550.0,0.0148607]
[1680699490939,0.12269895,28554.0,28550.0,0.00013247]
[1680699491176,0.3,28554.0,28550.0,0.00013247]
[1680699491619,0.308004,28554.0,28550.0,0.01013247]
[1680699491829,0.301,28554.0,28550.0,0.01013247]
[1680699492040,0.42369895,28554.0,28550.0,0.01013247]
[1680699492257,0.3,28554.0,28550.0,0.00013247]
[1680699492501,0.007004,28554.0,28550.0,0.00013247]
[1680699492943,0.007004,28554.0,28551.0,0.01240329]
[1680699493853,0.007004,28554.0,28550.0,0.00013247]
[1680699494068,0.007004,28554.0,28551.0,0.003]
[1680699494286,0.007004,28554.0,28550.0,0.00013247]
[1680699494498,0.3817,28555.0,28550.0,0.14202928]
[1680699494499,0.3,28555.0,28550.0,0.14202928]
[1680699494707,0.004,28554.0,28550.0,0.15640731]
[1680699494934,0.3,28555.0,28550.0,0.0145105]
[1680699495123,0.3,28555.0,28551.0,0.003]
[1680699495373,0.3,28555.0,28550.0,0.00013247]
[1680699495587,0.3,28555.0,28551.0,0.49835837]
[1680699495588,0.001,28555.0,28551.0,0.49835837]
[1680699495804,0.001,28555.0,28552.0,0.19842828]
[1680699496035,0.001,28555.0,28553.0,0.40320756]
[1680699496273,0.001,28555.0,28554.0,0.049486]
[1680699496529,0.02167679,28557.0,28554.0,0.049486]
[1680699497003,0.02167679,28557.0,28554.0,0.149486]
[1680699497207,0.001,28555.0,28554.0,0.16591268]
[1680699497424,0.02167679,28557.0,28554.0,0.29424768]
[1680699497611,0.02267679,28557.0,28555.0,0.04971]
[1680699497896,0.02167679,28557.0,28555.0,0.21658842]
[1680699498113,0.02167679,28557.0,28556.0,0.047491]
[1680699498329,0.02167679,28557.0,28556.0,0.054791]
[1680699499644,0.02267679,28557.0,28556.0,0.054791]
[1680699499853,0.02045956,28557.0,28556.0,0.06696326]
[1680699500094,0.02045956,28557.0,28556.0,0.06896326]
[1680699500523,0.02045956,28557.0,28556.0,0.0973027]
[1680699501815,0.02045956,28557.0,28556.0,0.06896326]
[1680699502024,0.02045956,28557.0,28556.0,0.02147226]
[1680699502448,0.02045956,28557.0,28556.0,0.06997526]
[1680699502660,0.02045956,28557.0,28556.0,0.02147226]
[1680699504195,0.11964856,28557.0,28556.0,0.02147226]
[1680699504381,0.11951756,28557.0,28556.0,0.02147226]
[1680699505269,0.41951756,28557.0,28556.0,0.02147226]
[1680699505478,0.77443812,28557.0,28556.0,0.01417226]
[1680699505904,0.87443812,28557.0,28556.0,0.01217226]
[1680699506119,0.88743812,28557.0,28556.0,0.01417226]
[1680699506322,0.88743812,28557.0,28556.0,0.01217226]
[1680699506528,0.90043812,28557.0,28556.0,0.01417226]
[1680699506953,0.90043812,28557.0,28556.0,0.002]
[1680699507598,1.76343699,28557.0,28551.0,0.00018]
[1680699507818,0.08389229,28553.0,28550.0,0.00013247]
[1680699508051,0.0809,28551.0,28550.0,0.00013247]
[1680699508274,0.57505251,28551.0,28550.0,0.00013247]
[1680699508485,0.3687,28549.0,28542.0,0.08332956]
[1680699508731,0.0816,28544.0,28541.0,0.00018]
[1680699508984,0.12269895,28543.0,28540.0,0.08350956]
[1680699509178,0.42269895,28543.0,28540.0,0.08350956]
[1680699509632,0.42269895,28543.0,28540.0,0.00018]
[1680699509840,0.3,28543.0,28541.0,0.01832277]
[1680699510280,0.003,28543.0,28541.0,0.01832277]
[1680699510483,0.007216,28545.0,28541.0,0.01832277]
[1680699510484,0.007006,28544.0,28541.0,0.01832277]
[1680699510693,0.307006,28545.0,28541.0,0.01832277]
[1680699510906,0.00717077,28543.0,28541.0,0.01832277]
[1680699511125,0.01417777,28543.0,28541.0,0.01832277]
[1680699511343,0.01417777,28543.0,28542.0,0.35471056]
[1680699511344,0.00717077,28543.0,28542.0,0.35471056]
[1680699511576,0.00717077,28543.0,28542.0,1.32467621]
[1680699511824,0.006164,28554.0,28543.0,0.4687]
[1680699512052,0.35471056,28554.0,28547.0,0.1654557]
[1680699512265,0.007004,28553.0,28548.0,0.18822981]
[1680699512476,0.007004,28553.0,28549.0,0.08222855]
[1680699512694,0.007004,28553.0,28550.0,0.19002181]
[1680699512914,0.36171456,28554.0,28551.0,0.047077]
[1680699513129,0.36171456,28554.0,28551.0,0.18915381]
[1680699513338,0.003,28553.0,28552.0,0.01891538]
[1680699513548,0.007004,28553.0,28550.0,0.00018]
[1680699513763,0.014008,28555.0,28550.0,0.046539]
[1680699513981,0.007004,28553.0,28551.0,0.0062]
[1680699514213,0.22430357,28563.0,28552.0,0.0549079]
[1680699514426,0.23224591,28564.0,28560.0,0.12557074]
[1680699514427,0.02398,28564.0,28560.0,0.12557074]
[1680699514651,0.02398,28564.0,28563.0,0.35471056]
[1680699514871,6e-05,28565.0,28563.0,4.90882211]
[1680699515084,0.02398,28569.0,28565.0,0.3687]
[1680699515304,0.02398,28569.0,28568.0,0.16519445]
[1680699515513,0.02398,28569.0,28568.0,0.70777082]
[1680699515754,0.02398,28569.0,28568.0,0.56405956]
[1680699515973,0.02398,28569.0,28568.0,0.295789]
[1680699516193,0.02398,28569.0,28568.0,0.052189]
[1680699516408,0.02398,28569.0,28568.0,0.045969]
[1680699516660,0.02398,28569.0,28568.0,0.128]
[1680699516871,0.37869056,28569.0,28568.0,0.075135]
[1680699517084,0.37890056,28569.0,28568.0,0.028]
[1680699517297,0.67890056,28569.0,28568.0,0.028]
[1680699517514,0.67890056,28569.0,28563.0,3.53018]
[1680699517735,0.42269895,28568.0,28565.0,0.353018]
[1680699517954,0.30021,28568.0,28567.0,0.047346]
[1680699518171,0.30021,28568.0,28567.0,0.0873824]
[1680699518386,0.30021,28568.0,28567.0,0.047346]
[1680699518598,0.30021,28568.0,28565.0,0.022]
[1680699518810,0.02398,28569.0,28567.0,0.048489]
[1680699518811,0.02419,28569.0,28567.0,0.048489]
[1680699519021,0.02398,28569.0,28565.0,0.022]
[1680699519264,0.02398,28569.0,28566.0,0.04751]
[1680699519510,0.02398,28569.0,28564.0,0.046566]
[1680699519743,0.02398,28569.0,28567.0,0.009]
[1680699519947,0.02398,28569.0,28568.0,0.048129]
[1680699520158,0.02398,28569.0,28568.0,0.068029]
[1680699521236,0.02398,28569.0,28568.0,0.070029]
[1680699521853,0.02398,28569.0,28568.0,0.067726]
[1680699522420,0.02398,28569.0,28568.0,0.0219]
[1680699523478,0.02398,28569.0,28568.0,0.070524]
[1680699523678,0.02398,28569.0,28568.0,0.0775764]
[1680699523880,0.02398,28569.0,28568.0,0.0289524]
[1680699524076,0.02398,28569.0,28563.0,3.48644281]
[1680699524310,0.47740951,28568.0,28563.0,2.60722985]
[1680699524510,0.83651056,28564.0,28561.0,0.00018]
[1680699524882,0.3687,28561.0,28553.0,0.00012]
[1680699525101,0.1137,28556.0,28548.0,0.00012]
[1680699525331,0.1137,28556.0,28546.0,0.08387445]
[1680699525548,0.47740951,28555.0,28547.0,0.06285595]
[1680699525762,0.47740951,28555.0,28546.0,6e-05]
[1680699525763,0.50191973,28555.0,28546.0,6e-05]
[1680699525971,0.3,28554.0,28547.0,0.00838745]
[1680699526192,0.3,28554.0,28544.0,0.48991445]
[1680699526193,0.50303351,28553.0,28544.0,0.48991445]
[1680699526416,0.50303351,28553.0,28544.0,0.48997445]
[1680699526417,0.4,28552.0,28544.0,0.48997445]
[1680699526639,0.47740951,28551.0,28545.0,0.06155161]
[1680699526864,0.47740951,28551.0,28544.0,0.08387445]
[1680699526865,0.3,28550.0,28544.0,0.00018]
[1680699527049,0.47740951,28549.0,28547.0,0.009]
[1680699527315,0.025571,28548.0,28543.0,0.0378425]
[1680699527538,0.47740951,28547.0,28544.0,0.028]
[1680699527753,0.35471056,28547.0,28543.0,0.00012]
[1680699527991,0.47740951,28547.0,28542.0,0.08387445]
[1680699529101,0.35471056,28547.0,28542.0,0.08387445]
[1680699529323,0.35471056,28547.0,28542.0,0.00018]
[1680699529534,0.35471056,28547.0,28542.0,0.00012]
[1680699529743,0.35471056,28547.0,28544.0,0.009]
[1680699529951,0.35471056,28547.0,28541.0,0.08387445]
[1680699530163,0.47840951,28547.0,28542.0,0.022]
[1680699530378,0.35571056,28547.0,28542.0,0.022]
[1680699530587,0.35471056,28547.0,28541.0,0.08387445]
[1680699530824,0.35471056,28547.0,28541.0,0.58029947]
[1680699530937,0.47740951,28547.0,28542.0,0.11619745]
[1680699531141,0.35571056,28547.0,28542.0,0.24777126]
[1680699531351,0.001,28547.0,28542.0,0.36039304]
[1680699531555,0.001,28547.0,28544.0,0.001751]
[1680699531762,0.001,28547.0,28543.0,0.001751]
[1680699531981,0.001,28547.0,28543.0,0.10138246]
[1680699532186,0.30021,28551.0,28544.0,0.17841481]
[1680699532439,0.001,28547.0,28545.0,0.14189681]
[1680699532649,0.001,28547.0,28545.0,0.02075843]
[1680699532823,0.001,28547.0,28543.0,0.06743846]
[1680699532824,0.001,28547.0,28543.0,0.16420191]
[1680699533167,0.42290895,28551.0,28544.0,0.001751]
[1680699533369,0.30021,28551.0,28545.0,0.14389681]
[1680699533573,0.30021,28551.0,28545.0,0.14189681]
[1680699534619,0.49977995,28551.0,28545.0,0.14189681]
[1680699535075,0.49977995,28551.0,28545.0,0.14389681]
[1680699535280,0.42290895,28551.0,28545.0,0.14389681]
[1680699535981,0.42290895,28551.0,28548.0,0.001751]
[1680699535982,0.30021,28551.0,28548.0,0.001751]
[1680699536194,0.30021,28551.0,28548.0,0.14364781]
[1680699536404,0.00021,28551.0,28548.0,0.001751]
[1680699536616,0.00021,28554.0,28549.0,0.001751]
[1680699536832,0.00021,28556.0,28552.0,0.001751]
[1680699537047,0.00021,28559.0,28553.0,0.14189681]
[1680699537273,0.026108,28558.0,28554.0,0.14189681]
[1680699537477,0.026318,28558.0,28554.0,0.14189681]
[1680699537691,0.35471056,28557.0,28549.0,0.00018]
[1680699537907,0.120103,28556.0,28547.0,0.4083683]
[1680699538131,0.120103,28556.0,28548.0,0.001]
[1680699538132,0.004,28551.0,28548.0,0.001]
[1680699538385,0.12269895,28551.0,28549.0,0.033095]
[1680699538616,0.47761951,28555.0,28554.0,0.00779]
[1680699538840,0.47761951,28555.0,28551.0,8.019e-05]
[1680699538841,0.35471056,28555.0,28551.0,8.019e-05]
[1680699539046,0.3,28554.0,28551.0,8.019e-05]
[1680699539249,0.65471056,28554.0,28551.0,8.019e-05]
[1680699539454,0.65471056,28554.0,28551.0,0.01429589]
[1680699540346,0.65471056,28554.0,28551.0,8.019e-05]
[1680699540760,0.65471056,28554.0,28551.0,0.00208019]
[1680699542634,0.66171456,28554.0,28551.0,0.00208019]
[1680699543283,0.3,28554.0,28551.0,0.00208019]
[1680699543512,0.00021,28554.0,28547.0,0.1571483]
[1680699543723,0.14189681,28553.0,28548.0,0.06547683]
[1680699543939,0.14189681,28553.0,28549.0,0.02224451]
[1680699544174,0.00021,28554.0,28549.0,0.02224451]
[1680699544405,0.007214,28555.0,28549.0,0.02224451]
[1680699544614,0.36192456,28555.0,28549.0,0.13541937]
[1680699544852,0.001,28553.0,28549.0,0.13541937]
[1680699545060,0.007214,28553.0,28550.0,0.02008962]
[1680699545275,0.007004,28553.0,28549.0,0.03724451]
[1680699545489,0.007004,28553.0,28549.0,0.02224451]
[1680699545705,0.30021,28554.0,28550.0,0.01877213]
[1680699546167,0.3,28553.0,28550.0,0.01877213]
[1680699546400,0.00021,28553.0,28550.0,0.01877213]
[1680699546612,0.001,28555.0,28550.0,0.01877213]
[1680699546827,0.00021,28557.0,28550.0,0.01877213]
[1680699547044,0.001,28553.0,28551.0,0.11317486]
[1680699547257,0.00021,28557.0,28550.0,0.001751]
[1680699547499,0.00021,28558.0,28551.0,0.11492586]
[1680699547727,0.35492056,28558.0,28551.0,0.11317486]
[1680699547944,0.001,28553.0,28551.0,0.13767686]
[1680699548154,0.001,28553.0,28552.0,0.11887141]
[1680699548585,0.00021,28556.0,28552.0,0.11887141]
[1680699548848,0.00021,28557.0,28552.0,0.003502]
[1680699549085,0.00021,28557.0,28554.0,0.001751]
[1680699549303,0.30021,28557.0,28554.0,0.001751]
[1680699549509,0.30021,28557.0,28552.0,0.003502]
[1680699549721,0.30021,28557.0,28552.0,0.02466292]
[1680699549936,0.30021,28557.0,28555.0,0.00175]
[1680699550179,0.30021,28557.0,28554.0,0.001751]
[1680699550398,0.30121,28557.0,28554.0,0.028]
[1680699550610,0.00021,28557.0,28556.0,0.00175]
[1680699550824,0.001,28557.0,28556.0,0.00175]
[1680699551033,0.001,28557.0,28556.0,0.37095]
[1680699551237,0.00021,28563.0,28556.0,0.4229752]
[1680699551461,0.001,28557.0,28556.0,0.4212252]
[1680699551672,0.001,28557.0,28556.0,0.37095]
[1680699552991,0.00021,28561.0,28556.0,0.37095]
[1680699553199,0.001,28557.0,28556.0,0.49737486]
[1680699553403,0.001,28557.0,28556.0,0.3842]
[1680699553619,0.001,28557.0,28556.0,0.38595]
[1680699553842,0.35492056,28562.0,28556.0,0.3707]
[1680699554055,0.1,28560.0,28556.0,0.0015]
[1680699554288,0.35471056,28559.0,28556.0,0.0015]
[1680699554506,0.35492056,28559.0,28556.0,0.0165]
[1680699554719,0.35492056,28559.0,28556.0,0.0015]
[1680699555137,0.3,28558.0,28556.0,0.0015]
[1680699555403,0.30021,28558.0,28556.0,0.0015]
[1680699555836,0.30021,28558.0,28556.0,0.0165]
[1680699555980,0.30021,28558.0,28556.0,0.0015]
[1680699556198,0.30121,28558.0,28556.0,0.0165]
[1680699556629,0.30121,28558.0,28556.0,0.12967486]
[1680699556832,0.00121,28558.0,28557.0,0.01489249]
[1680699556986,0.00115,28558.0,28557.0,0.01489249]
[1680699557207,0.001,28558.0,28557.0,0.01489249]
[1680699557414,0.001,28558.0,28557.0,0.01629249]
[1680699557828,0.001,28558.0,28557.0,0.11629249]
[1680699558247,0.001,28558.0,28557.0,0.00315]
[1680699558450,0.00021,28565.0,28557.0,0.00315]
[1680699558654,0.35471056,28564.0,28561.0,0.00175]
[1680699558874,0.35492056,28564.0,28561.0,0.11492486]
[1680699559102,0.35492056,28564.0,28561.0,0.00175]
[1680699559309,0.00021,28564.0,28561.0,0.00175]
[1680699559517,0.00021,28566.0,28562.0,0.0015]
[1680699559719,0.35492056,28567.0,28562.0,0.0015]
[1680699559932,0.35492056,28567.0,28563.0,0.00175]
[1680699560138,0.3,28566.0,28563.0,0.12656745]
[1680699560353,0.3,28566.0,28557.0,0.2458]
[1680699560354,0.30021,28566.0,28565.0,0.002]
[1680699560992,0.65492056,28566.0,28565.0,0.002]
[1680699561423,0.66192156,28566.0,28565.0,0.002]
[1680699561632,0.76788282,28566.0,28558.0,0.00175]
[1680699561841,0.44310681,28566.0,28559.0,0.11317486]
[1680699562072,0.00121,28566.0,28565.0,0.00175]
[1680699562279,0.001,28566.0,28565.0,0.00175]
[1680699562498,0.02419,28569.0,28565.0,0.052786]
[1680699562713,0.02398,28569.0,28568.0,0.00175]
[1680699562953,0.02398,28569.0,28568.0,0.033731]
[1680699563389,0.02398,28569.0,28568.0,0.0374541]
[1680699563599,0.02398,28569.0,28568.0,0.40659341]
[1680699563808,0.02398,28569.0,28568.0,0.40879341]
[1680699564655,0.02398,28569.0,28568.0,0.43679341]
[1680699564865,0.02398,28569.0,28568.0,0.40879341]
[1680699565074,0.02398,28569.0,28568.0,0.43579341]
[1680699565283,0.02398,28569.0,28568.0,0.40879341]
[1680699565531,0.02398,28569.0,28568.0,0.43679341]
[1680699565965,0.02398,28569.0,28568.0,0.40879341]
[1680699566166,0.02398,28569.0,28568.0,0.43579341]
[1680699566838,0.02398,28569.0,28568.0,0.53579341]
[1680699567055,0.02398,28569.0,28568.0,0.50879341]
[1680699567267,0.02398,28569.0,28568.0,0.53679341]
[1680699567466,0.02398,28569.0,28568.0,0.50879341]
[1680699567661,0.02398,28569.0,28568.0,0.53679341]
[1680699567868,0.02398,28569.0,28568.0,0.4351041]
[1680699568109,0.02398,28569.0,28568.0,0.431381]
[1680699568338,0.02398,28569.0,28568.0,0.431561]
[1680699568546,0.02398,28569.0,28568.0,0.436811]
[1680699569176,0.02398,28569.0,28568.0,0.433131]
[1680699569381,0.02398,28569.0,28568.0,0.5014821]
[1680699569592,0.02398,28569.0,28568.0,0.431381]
[1680699570461,0.02386779,28569.0,28568.0,0.431441]
[1680699570692,0.02386779,28569.0,28568.0,0.431381]
[1680699571317,0.01048902,28569.0,28568.0,0.433131]
[1680699571518,0.00850243,28569.0,28568.0,0.4914521]
[1680699571866,0.00850243,28569.0,28568.0,0.49206325]
[1680699573063,0.00850243,28569.0,28568.0,0.84677381]
[1680699573929,0.00850243,28569.0,28568.0,0.94677381]
[1680699574591,0.00850243,28569.0,28568.0,1.31547381]
[1680699575213,0.00850243,28569.0,28568.0,1.31565381]
[1680699575416,0.00850243,28569.0,28568.0,1.31559381]
[1680699575873,0.00787331,28572.0,28569.0,0.10530747]
[1680699576091,0.00616213,28572.0,28571.0,0.178352]
[1680699576299,0.00616213,28572.0,28571.0,0.53481256]
[1680699576517,0.00616213,28572.0,28571.0,0.6517181]
[1680699577587,0.00616213,28572.0,28571.0,0.6797181]
[1680699578004,0.00616213,28572.0,28571.0,0.6867181]
[1680699579518,0.00616213,28572.0,28571.0,1.0576181]
[1680699579958,0.00616213,28572.0,28571.0,1.1576181]
[1680699580164,0.00616213,28572.0,28571.0,1.1296181]
[1680699580379,0.00616213,28572.0,28571.0,1.1576181]
[1680699580588,0.00616213,28572.0,28571.0,1.1296181]
[1680699580846,0.00616213,28572.0,28571.0,1.1488681]
[1680699581061,0.00616213,28572.0,28571.0,0.6801681]
[1680699582549,0.00616213,28572.0,28571.0,0.32545754]
[1680699583174,0.00616213,28572.0,28571.0,0.17965754]
[1680699584043,0.00616213,28572.0,28571.0,0.15165754]
[1680699584244,0.00616213,28572.0,28571.0,0.17965754]
[1680699584659,0.00616213,28572.0,28571.0,0.062752]
[1680699585526,0.00616213,28572.0,28571.0,0.034752]
[1680699585730,0.00616213,28572.0,28571.0,0.062752]
[1680699585969,0.00616213,28572.0,28571.0,0.034752]
[1680699586175,0.00616213,28572.0,28571.0,0.068002]
[1680699586651,0.00616213,28572.0,28571.0,0.07253295]
[1680699586867,0.00616213,28572.0,28571.0,0.07078295]
[1680699587080,0.00616213,28572.0,28571.0,0.07198876]
[1680699587289,0.00616213,28572.0,28571.0,0.03140581]
[1680699587498,0.00616213,28572.0,28571.0,0.06384981]
[1680699588125,0.00616213,28572.0,28571.0,0.06559981]
[1680699588982,0.00616213,28572.0,28571.0,0.06384981]
[1680699589193,0.00616213,28572.0,28571.0,0.06559981]
[1680699589840,0.00616213,28572.0,28571.0,0.06384981]
[1680699590043,0.00605388,28572.0,28571.0,0.06384981]
[1680699590455,0.00605388,28572.0,28571.0,0.0617552]
[1680699591051,0.00605388,28572.0,28571.0,0.1433552]